Cogmind - Beta 9.1 @@@ ROGUE MODE // 2019.11.04 @ 20:34:10 Player: fartblaster Result: Destroyed by Y-45 Defender with Beam Rifle Performance ------------- Evolutions (1) 500 Regions Visited (2) 400 Robots Destroyed (13) 65 Value Destroyed (391) 391 Prototype IDs (0) 0 Alien Tech Used (0) 0 Bonus (0) 0 TOTAL SCORE: 1356 Bonus ------- None Cogmind --------- Core Integrity 0/400 Matter 191/300 Energy 100/100 System Corruption 0% Temperature Cool (9) Location -9/Materials Parts ------- Power (1) Propulsion (4) Utility (2) High-capacity Storage Unit Weapon (2) Inventory (12) Ion Engine Aluminum Leg Heat Sink Small Storage Unit Visual Processing Unit Particle Charger EM Shotgun Light Assault Rifle Peak State ------------ Power Improved Ion Engine Propulsion Aluminum Leg Aluminum Leg Aluminum Leg Aluminum Leg Utility High-capacity Storage Unit Sensor Array Weapon Beam Cannon Heavy Flail Inventory Ion Engine Aluminum Leg Heat Sink Small Storage Unit Visual Processing Unit Particle Charger EM Shotgun Particle Cannon Light Assault Rifle Grenade Launcher [Rating: 13] Favorites ----------- Power Improved Ion Engine Engine Improved Ion Engine Propulsion Aluminum Leg Leg Aluminum Leg Utility High-capacity Storage Unit Device Sensor Array Storage High-capacity Storage Unit Weapon Light Assault Rifle Energy Gun Medium Laser Energy Cannon Beam Cannon Ballistic Gun Light Assault Rifle Launcher Grenade Launcher Impact Weapon Heavy Flail Build | -11 -10 -9 ------- Run | Scr Mat Mat Slots Evolved 2 | . . 2 Power . | . . . Propulsion 2 | . . 2 Utility . | . . . Weapon . | . . . Parts Attached 24 | 6 13 5 Power 3 | 1 2 . Engine 3 | 1 2 . Core . | . . . Reactor . | . . . Propulsion 8 | 2 4 2 Treads . | . . . Leg 8 | 2 4 2 Wheel . | . . . Hover . | . . . Flight . | . . . Utility 4 | 1 3 . Device 2 | . 2 . Storage 2 | 1 1 . Processor . | . . . Hackware . | . . . Protection . | . . . Artifact . | . . . Weapon 9 | 2 4 3 Energy Gun 1 | 1 . . Energy Cannon 3 | . 2 1 Ballistic Gun 1 | 1 . . Ballistic Cannon . | . . . Launcher 3 | . 2 1 Special Weapon . | . . . Impact Weapon 1 | . . 1 Slashing Weapon . | . . . Piercing Weapon . | . . . Special Melee Weapon . | . . . Unidentified Prototypes . | . . . Parts Lost 10 | . 2 8 Power 2 | . 1 1 Propulsion 2 | . . 2 Utility 2 | . 1 1 Weapon 4 | . . 4 Highest Loss Streak 8 | . 1 8 Average Slot Usage (%) 88 | . 92 70 Engine 12 | . 13 8 Leg 27 | . 28 26 Device 7 | . 7 9 Storage 13 | . 14 11 Energy Gun 3 | . 4 . Energy Cannon 5 | . 5 7 Ballistic Gun 12 | . 14 2 Launcher 3 | . 4 . Impact Weapon 1 | . . 7 Naked Turns . | . . . Heaviest Build 46 | 10 45 46 Greatest Support 40 | 20 20 40 Greatest Overweight (x) 14 | . 2 14 Average Overweight (x) 1 | . 1 2 Largest Inventory Capacity 14 | 6 14 12 Average Capacity 11 | 5 11 12 Most Carried 11 | . 11 10 Average Carried 5 | . 6 9 Final Capacity 12 | 6 12 12 Final Carried 10 | . 10 8 Class Distribution -------------------- 89% | Mutant 10% | Scavenger-Mutant Dominant Class ---------------- Mutant | -10/Materials Scavenger-Mutant | -9/Materials Resources | -11 -10 -9 ----------- Run | Scr Mat Mat Matter Collected 424 | 180 244 . Remotely . | . . . Salvage Created 340 | . 340 . Parts 20 | . 20 . Haulers Intercepted . | . . . Recyclers Shooed . | . . . Parts Field Recycled . | . . . Retrieved Matter . | . . . Parts Self-Destructed . | . . . Prevented . | . . . Kills | -11 -10 -9 ------- Run | Scr Mat Mat Combat Hostiles Destroyed 10 | . 10 . Guns 4 | . 4 . Cannons 1 | . 1 . AOE 5 | . 5 . Classes Destroyed 3 | . 3 . Worker 2 | . 2 . Watcher 1 | . 1 . Grunt 10 | . 10 . Best Kill Streak 4 | . 4 . Combat Bots Only 4 | . 4 . Max Kills in Single Turn 2 | . 2 . Gunslinging . | . . . Exploded 2 | . 2 . Melee . | . . . Uniques/NPCs Destroyed . | . . . Combat | -11 -10 -9 -------- Run | Scr Mat Mat Damage Taken 1570 | . 589 981 Core 490 | . 87 403 Absorbed by Shields . | . . . Core Remaining (%) 82 | 100 65 . Volleys Fired 55 | . 48 7 Largest 2 | . 2 1 Hottest 88 | . 88 68 Shots Fired 81 | . 74 7 Gun 43 | . 43 . Cannon 27 | . 20 7 Launcher 11 | . 11 . Special . | . . . Kinetic 37 | . 37 . Thermal 33 | . 26 7 Explosive 11 | . 11 . Electromagnetic . | . . . Robot Hit Streak 5 | . 5 2 Robot Miss Streak 4 | . 4 2 Penetration Max . | . . . Secondary Targets 1 | . 1 . Max Gunslinging Chain 1 | . 1 . Shots Hit Robots 47 | . 39 8 Core Hits 29 | . 29 . Critical Hits . | . . . Critical Kills . | . . . Critical Parts Destroyed . | . . . Melee Attacks 5 | . . 5 Impact 5 | . . 5 Slashing . | . . . Piercing . | . . . Sneak Attacks . | . . . Combat Hostiles . | . . . Follow-up Attacks . | . . . Damage Inflicted 1176 | . 1001 175 Guns 221 | . 221 . Cannons 254 | . 200 54 Explosions 580 | . 580 . Melee 120 | . . 120 Ramming 1 | . . 1 Kinetic 171 | . 171 . Thermal 304 | . 250 54 Explosive 580 | . 580 . Electromagnetic . | . . . Impact 120 | . . 120 Slashing . | . . . Piercing . | . . . Highest Corruption . | . . . Average Corruption . | . . . Corruption Purged . | . . . Overload Shots . | . . . Overflow Damage 21 | . 21 . Projectiles 6 | . 6 . Explosions 15 | . 15 . Melee . | . . . Knockbacks 1 | . . 1 Impact 1 | . . 1 Kinetic . | . . . Secondary . | . . . Self-Inflicted Damage 82 | . 82 . Shots 4 | . 4 . Rammed 1 | . . 1 Targets Rammed 1 | . . 1 Kicked . | . . . Crushed . | . . . Highest Temperature 225 | . 225 75 Average Temperature 65 | . 70 29 Received Heat Transfer 516 | . 291 225 Siege Activations . | . . . Robots Corrupted . | . . . Combat Hostiles . | . . . Parts Fried . | . . . Impact Corruptions 1 | . . 1 Robots Melted . | . . . Combat Hostiles . | . . . Parts Melted . | . . . Heat Transferred 629 | . 518 111 Parts Sabotaged . | . . . Parts Stolen . | . . . Parts Stripped . | . . . Power Chain Reactions . | . . . Missiles Intercepted . | . . . Alert | -11 -10 -9 ------- Run | Scr Mat Mat Peak Influence 237 | . 237 55 Average Influence 70 | . 85 35 Maximum Alert Level 1 | . 1 . Low Security (%) 90 | . . . Level 1 9 | . . . Level 2 . | . . . Level 3 . | . . . Level 4 . | . . . Level 5 . | . . . High Security . | . . . Max Security . | . . . Squads Dispatched 3 | . 3 . Investigation 2 | . 2 . Extermination . | . . . Reinforcement 1 | . 1 . Assault . | . . . Garrison . | . . . Intercept . | . . . Construction Impeded . | . . . Haulers Reinforced . | . . . Stealth | -11 -10 -9 --------- Run | Scr Mat Mat Distress Signals . | . . . Communications Jammed . | . . . Distress Signals . | . . . Times Spotted 19 | . 15 4 Peak Tracking Total 6 | . 6 4 Tactical Retreats 1 | . 1 . Traps | -11 -10 -9 ------- Run | Scr Mat Mat Traps Triggered 2 | . 2 . Indirectly . | . . . Trap Hack Attempts . | . . . Triggered . | . . . Disarmed . | . . . Reprogrammed . | . . . Reused . | . . . Traps Extracted . | . . . Installed . | . . . Triggered . | . . . Machines | -11 -10 -9 ---------- Run | Scr Mat Mat Machines Disabled 2 | . 2 . Max in Single Turn 1 | . 1 . Machines Sabotaged . | . . . Garrisons Compromised . | . . . Overloaded Fab Kills . | . . . Fab Network Shutdowns . | . . . Hacking | -11 -10 -9 --------- Run | Scr Mat Mat Machines Accessed . | . . . Terminals . | . . . Fabricators . | . . . Repair Stations . | . . . Recycling Units . | . . . Scanalyzers . | . . . Garrison Access . | . . . Total Hacks . | . . . Successful . | . . . Failed . | . . . Catastrophic . | . . . Database Lockouts . | . . . Manual . | . . . Terminals . | . . . Fabricators . | . . . Repair Stations . | . . . Recycling Units . | . . . Scanalyzers . | . . . Garrison Access . | . . . Terminal Hacks . | . . . Fabricator Hacks . | . . . Repair Station Hacks . | . . . Recycling Unit Hacks . | . . . Scanalyzer . | . . . Garrison Access Hacks . | . . . Unauthorized Hacks . | . . . Terminals . | . . . Fabricators . | . . . Repair Stations . | . . . Recycling Units . | . . . Scanalyzers . | . . . Garrison Access . | . . . Data Cores Recovered . | . . . Used . | . . . Hacking Detections . | . . . Full Trace Events . | . . . Feedback Events . | . . . Feedback Blocked . | . . . Robot Schematics Acquired . | . . . Robots Built . | . . . Matter . | . . . Time . | . . . Total Robot Build Rating . | . . . Part Schematics Acquired . | . . . Parts Built . | . . . Matter . | . . . Time . | . . . Total Part Build Rating . | . . . Parts Repaired . | . . . Time . | . . . Parts Recycled . | . . . Recycled Matter . | . . . Retrieved Matter . | . . . Retrieved Components . | . . . Parts Scanalyzed . | . . . Part Schematics Acquired . | . . . Parts Damaged . | . . . Bothacking | -11 -10 -9 ------------ Run | Scr Mat Mat Used RIF Installer . | . . . Robots Hacked . | . . . Non-combat . | . . . Combat . | . . . Robot Hacks Applied . | . . . Relay Couplers Released . | . . . Robots Rewired . | . . . Allies Hacked . | . . . Hacks Repelled . | . . . Allies | -11 -10 -9 -------- Run | Scr Mat Mat Total Allies . | . . . Largest Group . | . . . Highest-Rated Group . | . . . Highest-Rated Ally . | . . . Total Orders . | . . . Ally Attacks . | . . . Total Damage . | . . . Kills . | . . . Allies Corrupted . | . . . Allies Melted . | . . . Intel | -11 -10 -9 ------- Run | Scr Mat Mat Robot Analysis Total . | . . . Derelict Logs Recovered . | . . . Drone Launches . | . . . Drone Recoveries . | . . . Exploration | -11 -10 -9 ------------- Run | Scr Mat Mat Turns Passed 719 | 68 544 107 Spaces Moved 322 | 54 240 28 Core 11 | 7 . 4 Treads . | . . . Legs 311 | 47 240 24 Wheels . | . . . Hover . | . . . Flight . | . . . Fastest Speed 50 | 50 120 150 Average Speed 160 | 110 165 216 Slowest Speed 750 | 120 180 750 Overloaded Moves . | . . . Propulsion Burnouts . | . . . Robots Hopped . | . . . Cave-ins Triggered . | . . . Exploration Rate (%) 12 | 3 33 2 Regions Visited 2 Branch Regions . Pre-discovered Areas . | . . . Known Exits Taken . | . . . Unknown Exits Taken 2 | 1 1 . Scrap Searched . | . . . Spaces Dug . | . . . Terrain Destroyed 60 | . 60 . Melee . | . . . Projectile . | . . . AOE 60 | . 60 . Actions | -11 -10 -9 --------- Run | Scr Mat Mat Total 431 | 59 316 56 Wait 15 | . 7 8 Move 320 | 53 239 28 Hop . | . . . Pick Up 8 | . 6 2 Fast Attach 10 | 6 4 . Attach 4 | . . 4 Detach 1 | . 1 . Swap 10 | . 9 1 Drop 2 | . 2 . Fire 55 | . 48 7 Melee 5 | . . 5 Ram 1 | . . 1 Kick . | . . . Crush . | . . . Escape Stasis . | . . . Rewire . | . . . Trap . | . . . Miscellaneous . | . . . Route ------- -11/Scrapyard -10/Materials -9/Materials History --------- Turn | Location | Event 3 | -11/Scrapyard | Discovered new exit (range 16) 69 | -11/Scrapyard | Entered Materials 309 | -10/Materials | Build established: Mutant 593 | -10/Materials | Discovered new exit (range 12) 613 | -10/Materials | Entered another Materials area 613 | -9/Materials | Evolved 2 slots: Propulsion x2 703 | -9/Materials | Core integrity fell below 50% 715 | -9/Materials | Core integrity fell below 20% 720 | -9/Materials | Destroyed by Y-45 Defender with Beam Rifle Last Messages --------------- 00593_ EXIT=FOUND PARAMETERS=PROPULSION_2 LOCATION=UNKNOWN GOAL=ESCAPE 00627_ Acquired Particle Charger. 00630_ Acquired Hvy. Flail. 00675_ Aluminum Leg severed. 00678_ G-34 Mercenary destroyed. 00678_ L-31 Rogue knocked back. 00679_ Aluminum Leg destroyed. 00684_ Beam Cannon destroyed. 00689_ Aluminum Leg severed. 00697_ Imp. Ion Engine destroyed. 00704_ Grenade Launcher destroyed. 00707_ Particle Cannon destroyed. 00707_ Hvy. Flail destroyed. 00707_ Sensor Array destroyed. 00707_ Slammed into L-31 Rogue. 00707_ Destroyed Imp. Aluminum Leg. 00707_ L-31 Rogue system corrupted by crushing effect. Map ----- +----------------------------------------------------+ | | | | | | | | | | | | | | | ?????????????????????????????????????? | | ?????????????????????????????????????? | | ?????????????????????????????????????? | | ?????????????????????????????????????? | | ?????????????????????????????????????? | | ?????????????????????????????????????? | | ?????????????????????????????????????? | | ?????????????????????????????????????? | | ?????????????????????????????????????? | | ?????????????????????????????????????? | | ?????????????????????????????????????? | | ??????????????????????????#####??????? | | ??????????????????????##### //#??????? | | ??????????????????????# /#??????? | | ??????????????????????# !#??????? | | ??????????????????????# !!#??????? | | ?????????????######+###==l !!#??????? | | ?????? =%Y !!#??????? | | ?????? *g @#####??????? | | ?????? #??????????? | | ??????? ##################??????????? | | ?????????????????????????????????????? | | ?????????????????????????????????????? | | ?????????????????????????????????????? | | ?????????????????????????????????????? | | ?????????????????????????????????????? | | ?????????????????????????????????????? | | ?????????????????????????????????????? | | ?????????????????????????????????????? | | ?????????????????????????????????????? | | ?????????????????????????????????????? | | ?????????????????????????????????????? | | ?????????????????????????????????????? | | ?????????????????????????????????????? | | ?????????????????????????????????????? | | ?????????????????????????????????????? | | ?????????????????????????????????????? | | ?????????????????????????????????????? | | ?????????????????????????????????????? | | ?????????????????????????????????????? | | ?????????????????????????????????????? | | ?????????????????????????????????????? | | ?????????????????????????????????????? | +----------------------------------------------------+ Best States ------------- Heat Dissipation 39 Energy Generation 12 Energy Capacity 265 Matter Stores 232 Matter Capacity 300 Sight Range 16 Robot Scan Range 10 Terrain Scan Density 10 Evasion (%) 40 Item Schematics ----------------- None Robot Schematics ------------------ None Fabricated ------------ Nothing Alien Tech Used ----------------- None Achievements -------------- None Challenges ------------ None Game ------ Seed WeldingDataMicroactuators Manual? 0 Play Time 00:12:19 Cumulative 10.1 hours Start 2019.11.04 @ 20:22:17 End 2019.11.04 @ 20:34:10 Sessions 1 Manual Loads 0 Difficulty Rogue Special Mode None Game No. 28 Rogue 28 Adventurer 0 Explorer 0 Win Type - Total 0 Types 0/0/0/0/0/0/0 Lore% 7 Gallery% 15 Achievement% 10 Wizard Run 0 Options --------- ASCII 0 Keyboard 1 Movement Numpad Keybinds 0 Fullscreen 1 Font 18/SmallcapsGlow Map View 76x50 Tactical HUD 1 Map Filters NONE Filters NONE Steam 1 RUN: d036fb1b-f84d-4ac2-bdf0-46039f3b1223